bitfinex-derivatives/quotes_BNBF0:USTF0_20250510
["timestamp","ask_amount","ask_price","bid_price","bid_amount"]
[1746913064756,0.28034566,656.46,655.93,0.75491058]
[1746913066459,0.26528333,656.45,655.93,0.75491058]
[1746913067158,0.28030017,656.44,655.93,0.75491058]
[1746913069461,0.26529951,656.43,655.93,0.75491058]
[1746913069658,0.28030017,656.42,655.93,0.75491058]
[1746913072557,0.26529547,656.41,655.93,0.75491058]
[1746913072760,0.28030017,656.4,655.93,0.75491058]
[1746913075462,0.26529344,656.39,655.93,0.75491058]
[1746913075863,0.28030017,656.38,655.93,0.75491058]
[1746913078865,0.28030017,657.01,655.93,0.75491058]
[1746913079265,0.28030017,657.0,655.93,0.75491058]
[1746913079466,0.28030017,656.99,655.93,0.75491058]
[1746913079767,0.28030017,656.98,655.93,0.75491058]
[1746913080164,0.28030017,656.97,655.93,0.75491058]
[1746913080466,0.28030017,656.96,655.93,0.75491058]
[1746913080668,0.26523177,657.0,655.93,0.75491058]
[1746913081067,0.28031532,656.99,655.93,0.75491058]
[1746913081369,0.28031532,656.98,655.93,0.75491058]
[1746913081561,0.54554911,656.98,655.93,0.75491058]
[1746913081765,0.28031532,656.97,655.93,0.75491058]
[1746913082267,0.28031532,656.96,655.93,0.75491058]
[1746913082869,0.28031532,656.95,655.93,0.75491058]
[1746913083171,0.28031532,656.94,655.93,0.75491058]
[1746913083673,0.28031532,656.93,655.93,0.75491058]
[1746913083971,0.28031532,656.92,655.93,0.75491058]
[1746913084374,0.28031532,656.91,655.93,0.75491058]
[1746913084573,0.54555114,656.91,655.93,0.75491058]
[1746913084873,0.28031532,656.9,655.93,0.75491058]
[1746913085372,0.28031532,656.89,655.93,0.75491058]
[1746913085675,0.28031532,656.88,655.93,0.75491058]
[1746913086072,0.28031532,656.87,655.93,0.75491058]
[1746913086374,0.28031532,656.86,655.93,0.75491058]
[1746913086874,0.28031532,656.85,655.93,0.75491058]
[1746913087074,0.28031532,656.84,655.93,0.75491058]
[1746913087468,0.54555821,656.83,655.93,0.75491058]
[1746913087878,0.28031532,656.82,655.93,0.75491058]
[1746913088476,0.28031532,656.81,655.93,0.75491058]
[1746913088875,0.28031532,656.8,655.93,0.75491058]
[1746913089172,0.26524289,656.83,655.93,0.75491058]
[1746913089476,0.28029633,656.82,655.93,0.75491058]
[1746913089776,0.28029633,656.81,655.93,0.75491058]
[1746913090076,0.28029633,656.8,655.93,0.75491058]
[1746913090474,0.28029633,656.79,655.93,0.75491058]
[1746913090873,0.28029633,656.78,655.93,0.75491058]
[1746913091078,0.28029633,656.77,655.93,0.75491058]
[1746913091478,0.54552608,656.76,655.93,0.75491058]
[1746913091874,0.28029633,656.75,655.93,0.75491058]
[1746913092079,0.28029633,656.74,655.93,0.75491058]
[1746913092480,0.28029633,656.73,655.93,0.75491058]
[1746913093380,0.56975909,657.04,655.93,0.75491058]
[1746913093381,0.28029633,656.72,655.93,0.75491058]
[1746913093575,0.54555438,656.72,655.93,0.75491058]
[1746913093876,0.26525805,656.72,655.93,0.75491058]
[1746913094182,0.28029633,656.71,655.93,0.75491058]
[1746913094680,0.26525805,656.72,655.93,0.75491058]
[1746913094979,0.28029285,656.71,655.93,0.75491058]
[1746913096681,0.28029285,657.1,655.93,0.75491058]
[1746913096884,2.26353344,657.1,655.93,0.75491058]
[1746913097081,0.28029285,657.09,655.93,0.75491058]
[1746913097383,0.28029285,657.08,655.93,0.75491058]
[1746913097580,0.54551654,657.08,655.93,0.75491058]
[1746913097781,0.28029285,657.07,655.93,0.75491058]
[1746913098080,0.28029285,657.06,655.93,0.75491058]
[1746913098285,0.28029285,657.05,655.93,0.75491058]
[1746913098581,0.28029285,657.04,655.93,0.75491058]
[1746913098982,0.28029285,657.03,655.93,0.75491058]
[1746913099481,0.54551856,657.02,655.93,0.75491058]
[1746913099883,0.28029285,657.01,655.93,0.75491058]
[1746913100982,0.28029285,657.0,655.93,0.75491058]
[1746913101378,0.28029285,656.99,655.93,0.75491058]
[1746913101781,0.28029285,656.98,655.93,0.75491058]
[1746913102081,0.28029285,656.97,655.93,0.75491058]
[1746913102582,0.54552462,656.96,655.93,0.75491058]
[1746913102882,0.28029285,656.95,655.93,0.75491058]
[1746913103382,0.28029285,656.94,655.93,0.75491058]
[1746913103684,0.28029285,656.93,655.93,0.75491058]
[1746913104084,0.28029285,656.92,655.93,0.75491058]
[1746913104485,0.28029285,656.91,655.93,0.75491058]
[1746913104880,0.28029285,656.95,655.93,1.20191058]
[1746913105379,0.28029285,656.94,655.93,1.20191058]
[1746913105584,0.28029285,656.93,655.93,1.20191058]
[1746913105986,0.28029285,656.92,655.93,1.20191058]
[1746913106281,0.28029285,656.91,655.93,1.20191058]
[1746913106485,0.54550239,656.91,655.93,1.20191058]
[1746913106687,0.28029285,656.9,655.93,1.20191058]
[1746913107180,0.28029285,656.89,655.93,1.20191058]
[1746913107683,0.28029285,656.88,655.93,1.20191058]
[1746913107887,0.28029285,656.87,655.93,1.20191058]
[1746913108487,0.54553574,656.86,655.93,1.20191058]
[1746913108686,0.28029285,656.85,655.93,1.20191058]
[1746913108982,0.28029285,656.84,655.93,1.20191058]
[1746913109386,0.28029285,656.83,655.93,1.20191058]
[1746913110386,0.28029285,656.82,655.93,1.20191058]
[1746913110891,0.28029285,656.85,655.93,1.20191058]
[1746913111189,0.28029285,656.84,655.93,1.20191058]
[1746913111383,0.5455408,656.84,655.93,1.20191058]
[1746913111587,0.28029285,656.83,655.93,1.20191058]
[1746913111889,0.26524795,656.84,655.93,1.20191058]
[1746913111890,0.28029285,656.82,655.93,1.20191058]
[1746913112304,0.28029285,656.81,655.93,1.20191058]
[1746913112685,0.28029285,656.8,655.93,1.20191058]
[1746913112986,0.28029285,656.79,655.93,1.20191058]
[1746913113389,0.26524795,656.84,655.93,1.20191058]
[1746913113390,0.28029285,656.78,655.93,1.20191058]
[1746913113790,0.28029285,656.77,655.93,1.20191058]
[1746913114391,0.56975211,657.13,655.93,1.20191058]
[1746913114392,0.28029285,656.83,655.93,1.20191058]
[1746913114691,0.28029285,656.82,655.93,1.20191058]
[1746913115192,0.28029285,656.81,655.93,1.20191058]
[1746913115490,0.28029285,656.8,655.93,1.20191058]
[1746913115895,0.28029285,656.79,655.93,1.20191058]
[1746913116397,0.26522773,656.81,655.93,1.20191058]
[1746913116597,0.28029044,656.8,655.93,1.20191058]
[1746913117497,0.54554344,656.79,655.93,1.20191058]
[1746913117893,0.28029044,656.78,655.93,1.20191058]
[1746913118393,0.28029044,656.77,655.93,1.20191058]
[1746913118699,0.28029044,656.76,655.93,1.20191058]
[1746913118997,0.28029044,656.75,655.93,1.20191058]
[1746913119398,0.28029044,656.74,655.93,1.20191058]
[1746913119694,0.28029044,656.73,655.93,1.20191058]
[1746913120102,0.28029044,656.72,655.93,1.20191058]
[1746913120497,0.28029044,656.71,655.93,1.20191058]
[1746913122704,0.26525704,656.72,655.93,1.20191058]
[1746913122999,0.28029341,656.71,655.93,1.20191058]
[1746913123504,0.28029341,656.96,655.93,1.20191058]
[1746913123701,0.26526412,656.7,655.93,1.20191058]
[1746913123902,0.28029341,656.96,655.93,1.20191058]
[1746913124301,0.28029341,656.95,655.93,1.20191058]
[1746913124699,0.28029341,656.94,655.93,1.20191058]
[1746913125106,0.28029341,656.93,655.93,1.20191058]
[1746913125308,0.5455272,656.93,655.93,1.20191058]
[1746913125505,0.28029341,656.92,655.93,1.20191058]
[1746913125903,0.28029341,656.91,655.93,1.20191058]
[1746913126508,0.28029341,656.9,655.93,1.20191058]
[1746913127004,0.28029341,656.89,655.93,1.20191058]
[1746913127408,0.28029341,656.88,655.93,1.20191058]
[1746913127908,0.28029341,656.87,655.93,1.20191058]
[1746913128209,0.28029341,656.86,655.93,1.20191058]
[1746913128705,0.28029341,656.85,655.93,1.20191058]
[1746913129511,0.54553832,656.84,655.93,1.20191058]
[1746913129810,0.28029341,656.83,655.93,1.20191058]
[1746913130411,0.28029341,656.82,655.93,1.20191058]
[1746913130810,0.28029341,656.81,655.93,1.20191058]
[1746913131007,0.28029341,656.83,655.93,1.20191058]
[1746913132110,0.28029341,656.82,655.93,1.20191058]
[1746913132308,0.26524491,656.84,655.93,1.20191058]
[1746913133016,0.28029435,656.83,655.93,1.20191058]
[1746913133413,0.28029435,656.82,655.93,1.20191058]
[1746913133714,0.28029435,656.83,655.93,1.20191058]
[1746913134716,0.26524491,656.84,655.93,1.20191058]
[1746913135118,0.28030217,656.83,655.93,1.20191058]
[1746913135516,0.26524491,656.84,655.93,1.20191058]
[1746913135912,0.28030345,656.83,655.93,1.20191058]
[1746913138519,0.28030345,657.07,655.93,1.20191058]
[1746913138821,0.28030345,657.06,655.93,1.20191058]
[1746913139120,0.28030345,657.05,655.93,1.20191058]
[1746913139419,0.28030345,657.04,655.93,1.20191058]
[1746913139819,0.28030345,657.03,655.93,1.20191058]
[1746913140220,0.28030345,657.02,655.93,1.20191058]
[1746913140418,0.28030345,657.01,655.93,0.30491058]
[1746913140720,0.28030345,657.0,655.93,0.30491058]
[1746913141120,0.28030345,656.99,655.93,0.30491058]
[1746913141622,0.28030345,656.98,655.93,0.30491058]
[1746913141921,0.28030345,656.97,655.93,0.30491058]
[1746913142316,0.28030345,656.96,655.93,0.30491058]
[1746913143020,0.28030345,656.95,655.93,0.30491058]
[1746913143220,1.98324059,656.8,655.93,0.30491058]
[1746913143419,0.85007678,656.79,655.93,0.30491058]
[1746913143823,0.28030345,656.78,655.93,0.30491058]
[1746913144217,0.28030345,656.77,655.93,0.30491058]
[1746913144519,0.5455979,656.77,655.93,0.30491058]
[1746913144718,0.28030345,656.76,655.93,0.30491058]
[1746913145023,1.98324059,656.66,655.93,0.30491058]
[1746913145322,0.85007678,656.65,655.93,0.30491058]
[1746913145823,0.28030345,656.64,655.93,0.30491058]
[1746913146024,0.28030345,656.63,655.93,0.30491058]
[1746913146721,0.28030345,656.62,655.93,0.30491058]
[1746913147122,0.28030345,656.61,655.93,0.30491058]
[1746913147423,0.28030345,656.6,655.93,0.30491058]
[1746913147824,0.28030345,656.59,655.93,0.30491058]
[1746913148124,1.98324059,656.76,655.93,0.30491058]
[1746913148527,0.85024535,656.75,655.93,0.30491058]
[1746913148824,0.2803596,656.74,655.93,0.30491058]
[1746913149328,0.2803596,656.73,655.93,0.30491058]
[1746913150227,0.2803596,656.72,655.93,0.30491058]
[1746913150521,0.2803596,656.71,655.93,0.30491058]
[1746913150926,0.2803596,656.7,655.93,0.30491058]
[1746913151226,0.2803596,656.69,655.93,0.30491058]
[1746913151827,0.2803596,656.68,655.93,0.30491058]
[1746913152225,0.2803596,656.67,655.93,0.30491058]
[1746913152528,0.2803596,656.66,655.93,0.30491058]
[1746913152827,0.2803596,656.65,655.93,0.30491058]
[1746913153229,0.2803596,656.64,655.93,0.30491058]
[1746913153530,0.2803596,656.63,655.93,0.30491058]
[1746913154130,0.2803596,656.62,655.93,0.30491058]
[1746913154432,0.2803596,656.61,655.93,0.30491058]
[1746913154931,0.2803596,656.6,655.93,0.30491058]
[1746913155328,0.2803596,656.59,655.93,0.30491058]
[1746913155632,0.2803596,656.58,655.93,0.30491058]
[1746913156032,0.2803596,656.57,655.93,0.30491058]
[1746913156434,0.2803596,656.56,655.93,0.30491058]
[1746913156631,0.2803596,656.55,655.93,0.30491058]
[1746913159636,0.26529951,656.54,655.93,0.30491058]
[1746913160034,0.2803596,656.53,655.93,0.30491058]
[1746913162735,0.2803596,656.53,655.93,0.78091058]
[1746913163236,0.2803596,656.52,655.93,0.78091058]
[1746913163536,0.2803596,656.53,655.93,0.78091058]
[1746913165437,0.26528232,656.52,655.93,0.78091058]
[1746913166036,0.2803596,656.51,655.93,0.78091058]
[1746913166237,0.26528232,656.52,655.93,0.78091058]
[1746913166435,0.28033049,656.51,655.93,0.78091058]
[1746913168641,0.26528434,656.5,655.93,0.78091058]
[1746913169141,0.28033049,656.49,655.93,0.78091058]
[1746913171543,0.26525603,656.48,655.93,0.78091058]
[1746913172042,0.28033049,656.47,655.93,0.78091058]
[1746913174550,0.54558854,656.47,655.93,0.78091058]
[1746913174846,0.28033049,656.46,655.93,0.78091058]
[1746913180853,0.28033049,657.18,655.93,0.78091058]
[1746913181155,2.26357108,657.18,655.93,0.78091058]
[1746913181354,0.28033049,657.17,655.93,0.78091058]
[1746913181655,0.54553397,657.17,655.93,0.78091058]
[1746913181855,0.28033049,657.16,655.93,0.78091058]
[1746913182155,0.28033049,657.15,655.93,0.78091058]
[1746913182450,0.28033049,657.14,655.93,0.78091058]
[1746913182856,0.28033049,657.13,655.93,0.78091058]
[1746913183255,0.28033049,657.12,655.93,0.78091058]
[1746913183657,0.28033049,657.11,655.93,0.78091058]
[1746913184556,0.28033049,657.1,655.93,0.78091058]
[1746913184956,0.28033049,657.09,655.93,0.78091058]
[1746913185356,0.28033049,657.08,655.93,0.78091058]
[1746913185657,0.28033049,657.07,655.93,0.78091058]
[1746913186353,0.28033049,657.06,655.93,0.78091058]
[1746913186553,0.28033049,657.05,655.93,0.78091058]
[1746913187053,0.28033049,657.04,655.93,0.78091058]
[1746913187559,0.28033049,657.03,655.93,0.78091058]
[1746913188060,0.28033049,657.02,655.93,0.78091058]
[1746913188456,0.28033049,657.01,655.93,0.78091058]
[1746913188959,0.28033049,657.0,655.93,0.78091058]
[1746913189559,0.28033049,656.99,655.93,0.78091058]
[1746913189758,0.54553295,656.99,655.93,0.78091058]
[1746913189959,0.28033049,656.98,655.93,0.78091058]
[1746913190259,0.28033049,656.97,655.93,0.78091058]
[1746913191059,0.28033049,656.96,655.93,0.78091058]
[1746913191455,0.28033049,656.95,655.93,0.78091058]
[1746913191959,0.28033049,656.94,655.93,0.78091058]
[1746913192457,0.28033049,656.93,655.93,0.78091058]
[1746913192758,0.28033049,656.92,655.93,1.26391058]
[1746913193157,0.28033049,656.91,655.93,1.26391058]
[1746913193556,0.28033049,656.9,655.93,1.26391058]
[1746913193861,0.28033049,656.89,655.93,1.26391058]
[1746913194257,0.28033049,656.88,655.93,1.26391058]
[1746913194756,0.28033049,656.87,655.93,1.26391058]
[1746913194960,0.28033049,656.86,655.93,1.26391058]
[1746913195257,0.28033049,656.85,655.93,1.26391058]
[1746913195561,0.28033049,656.84,655.93,1.26391058]
[1746913195965,0.28033049,656.83,655.93,1.26391058]
[1746913196264,0.28033049,656.82,655.93,1.26391058]
[1746913196659,0.28033049,656.81,655.93,1.26391058]
[1746913197165,0.28033049,656.98,655.93,1.26391058]
[1746913197364,0.28033049,656.97,655.93,1.26391058]
[1746913198066,0.28033049,656.96,655.93,1.26391058]
[1746913198567,0.54554508,656.95,655.93,1.26391058]
[1746913199065,0.28033049,656.94,655.93,1.26391058]
[1746913199362,0.28033049,656.93,655.93,1.26391058]
[1746913199869,0.28033049,656.92,655.93,1.26391058]
[1746913200168,0.28033049,656.91,655.93,1.26391058]
[1746913200671,0.28033049,656.9,655.93,1.26391058]
[1746913200968,0.26521459,656.95,655.93,1.26391058]
[1746913201370,0.2803052,656.94,655.93,1.26391058]
[1746913201567,0.54550261,656.94,655.93,1.26391058]
[1746913201767,0.2803052,656.93,655.93,1.26391058]
[1746913203164,0.2803052,656.92,655.93,1.26391058]
[1746913203568,0.2803052,656.91,655.93,1.26391058]
[1746913203869,0.2803052,656.9,655.93,1.26391058]
[1746913204269,0.2803052,656.93,655.93,1.26391058]
[1746913204569,0.26523986,656.89,655.93,1.26391058]
[1746913204966,0.2803052,656.88,655.93,1.26391058]
[1746913205269,0.2803052,656.87,655.93,1.26391058]
[1746913205570,0.2803052,656.86,655.93,1.26391058]
[1746913205968,0.2803052,656.85,655.93,1.26391058]
[1746913206271,0.2803052,656.84,655.93,1.26391058]
[1746913206672,0.2803052,656.83,655.93,1.26391058]
[1746913207072,0.2803052,656.82,655.93,1.26391058]
[1746913207372,0.2803052,656.81,655.93,1.26391058]
[1746913207773,0.2803052,656.8,655.93,1.26391058]
[1746913208673,0.26520651,656.79,655.93,1.26391058]
[1746913208866,0.54551171,656.79,655.93,1.26391058]
[1746913209173,0.54551171,656.79,655.93,1.25042652]
[1746913209373,0.2803052,656.78,655.93,1.25042652]
[1746913209672,0.2803052,656.77,655.93,1.25042652]
[1746913209974,0.2803052,656.76,655.93,1.25042652]
[1746913210478,0.54556022,656.75,655.93,1.25042652]
[1746913210674,0.26525502,656.75,655.93,1.25042652]
[1746913210977,0.28032987,656.74,655.93,1.25042652]
[1746913211971,0.28032987,656.73,655.93,1.25042652]
[1746913212376,0.28032987,656.72,655.93,1.25042652]
[1746913212672,0.28032987,656.71,655.93,1.25042652]
[1746913213077,0.28032987,656.7,655.93,1.25042652]
[1746913213473,0.28032987,657.04,655.93,1.25042652]
[1746913213777,0.28032987,657.03,655.93,1.25042652]
[1746913214078,0.28032987,657.02,655.93,1.25042652]
[1746913214578,0.54555861,657.01,655.93,1.25042652]
[1746913215477,0.28032987,657.0,655.93,1.25042652]
[1746913215782,0.28032987,656.99,655.93,1.25042652]
[1746913216077,0.28032987,656.98,655.93,1.25042652]
[1746913216481,0.28032987,656.97,655.93,1.25042652]
[1746913216778,0.5455576,656.97,655.93,1.25042652]
[1746913217082,0.28032987,656.96,655.93,1.25042652]
[1746913217284,0.28032987,656.95,655.93,1.25042652]
[1746913217584,0.28032987,656.94,655.93,1.25042652]
[1746913217781,0.28032987,656.93,655.93,1.25042652]
[1746913218085,0.28032987,656.92,655.93,1.25042652]
[1746913218482,0.28032987,656.91,655.93,1.25042652]
[1746913218687,0.28032987,656.9,655.93,1.25042652]
[1746913218987,0.28032987,656.89,655.93,1.25042652]
[1746913219388,0.28032987,656.88,655.93,1.25042652]
[1746913219686,0.28032987,656.87,655.93,1.25042652]
[1746913219987,0.28032987,656.86,655.93,1.25042652]
[1746913220394,0.28032987,656.85,655.93,1.25042652]
[1746913220789,0.28032987,656.84,655.93,1.25042652]
[1746913221189,0.28032987,656.83,655.93,1.25042652]
[1746913221485,0.28032987,656.82,655.93,1.25042652]
[1746913221788,0.28032987,656.81,655.93,1.25042652]
[1746913222189,0.28032987,656.8,655.93,1.25042652]
[1746913222790,0.28032987,656.79,655.93,1.25042652]
[1746913223089,0.28032987,656.78,655.93,1.25042652]
[1746913223589,0.28032987,656.77,655.93,1.25042652]
[1746913223788,0.28032987,656.76,655.93,1.25042652]
[1746913224789,0.26523683,656.8,655.93,1.25042652]
[1746913224790,0.28032987,656.75,655.93,1.25042652]
[1746913225191,0.28032987,656.74,655.93,1.25042652]
[1746913225693,0.28032987,656.73,655.93,1.25042652]
[1746913225998,0.28032987,656.72,655.93,1.25042652]
[1746913226598,0.54556468,656.71,655.93,1.25042652]
[1746913227098,0.28032987,656.7,655.93,1.25042652]
[1746913227298,0.26523481,656.71,655.93,1.25042652]
[1746913227299,0.28032987,656.69,655.93,1.25042652]
[1746913227594,0.28032987,656.68,655.93,1.25042652]
[1746913227997,0.28032987,656.67,655.93,1.25042652]
[1746913228493,0.26526311,656.66,655.93,1.25042652]
[1746913228699,0.54559298,656.66,655.93,1.25042652]
[1746913228998,0.28032987,656.65,655.93,1.25042652]
[1746913229294,0.28032987,656.64,655.93,1.25042652]
[1746913229700,0.28032987,656.63,655.93,1.25042652]
[1746913229902,0.28032987,656.62,655.93,1.25042652]
[1746913230200,0.28032987,656.65,655.93,1.25042652]
[1746913230501,0.28032987,656.64,655.93,1.25042652]
[1746913230796,0.26526311,656.66,655.93,1.25042652]
[1746913230797,0.28032987,656.63,655.93,1.25042652]
[1746913231100,0.28032987,656.62,655.93,1.25042652]
[1746913231501,0.26526816,656.61,655.93,1.25042652]
[1746913231800,0.28032987,656.6,655.93,1.25042652]
[1746913233006,0.28032987,656.59,655.93,1.25042652]
[1746913233507,0.28032987,656.6,655.93,1.25042652]
[1746913234806,0.26527322,656.59,655.93,1.25042652]
[1746913235309,0.28032987,656.58,655.93,1.25042652]
[1746913238114,0.26527322,656.59,655.93,1.25042652]
[1746913238709,0.28025444,656.58,655.93,1.25042652]
[1746913240214,0.26696726,656.58,655.93,1.25042652]
[1746913240713,0.26525502,656.57,655.93,1.25042652]
[1746913241314,0.28025838,656.56,655.93,1.25042652]
[1746913242017,0.26525502,656.57,655.93,1.25042652]
[1746913242316,0.28024134,656.56,655.93,1.25042652]
[1746913243717,0.26523481,656.55,655.93,1.25042652]
[1746913244014,0.28024134,656.54,655.93,1.25042652]
[1746913246714,0.28024134,656.6,655.93,1.25042652]
[1746913247015,0.26522268,656.61,655.93,1.25042652]
[1746913247411,0.28022217,656.6,655.93,1.25042652]
[1746913252812,0.28022217,657.24,655.93,1.25042652]
[1746913253117,0.28022217,657.23,655.93,1.25042652]
[1746913253512,0.28022217,657.22,655.93,1.25042652]
[1746913253812,0.54537412,657.22,655.93,1.25042652]
[1746913254113,0.28022217,657.21,655.93,1.25042652]
[1746913254517,0.28022217,657.2,655.93,1.25042652]
[1746913254913,0.28022217,657.19,655.93,1.25042652]
[1746913255220,0.28022217,657.18,655.93,1.25042652]
[1746913255520,0.28022217,657.17,655.93,1.25042652]
[1746913255919,0.28022217,657.16,655.93,1.25042652]
[1746913256216,0.28022217,657.15,655.93,1.25042652]
[1746913256520,0.28022217,657.14,655.93,1.25042652]
[1746913256721,0.28022217,657.13,655.93,1.25042652]
[1746913257221,0.28022217,657.12,655.93,1.25042652]
[1746913257520,0.28022217,657.11,655.93,1.25042652]
[1746913257822,0.28022217,657.1,655.93,1.25042652]
[1746913258117,0.28022217,657.09,655.93,1.25042652]
[1746913258520,0.54538119,657.08,655.93,1.25042652]
[1746913258922,0.28022217,657.07,655.93,1.25042652]
[1746913259323,0.28022217,657.06,655.93,1.25042652]
[1746913259824,0.28022217,657.05,655.93,1.25042652]
[1746913260124,0.28022217,657.07,655.93,1.25042652]
[1746913260424,0.28022217,657.06,655.93,1.25042652]
[1746913260725,0.28022217,657.07,655.93,1.25042652]
[1746913262024,0.26515902,657.08,655.93,1.25042652]
[1746913262425,0.28026839,657.07,655.93,1.25042652]
[1746913262724,0.28026839,657.06,655.93,1.25042652]
[1746913263125,0.28026839,657.05,655.93,1.25042652]
[1746913263725,0.28026839,657.07,655.93,1.25042652]
[1746913264025,0.28026839,657.06,655.93,1.25042652]
[1746913264328,0.28026839,657.07,655.93,1.25042652]
[1746913264626,0.26519943,657.05,655.93,1.25042652]
[1746913265023,0.28026839,657.04,655.93,1.25042652]
[1746913265530,0.28026839,657.03,655.93,1.25042652]
[1746913265930,0.28026839,657.02,655.93,1.25042652]
[1746913266331,0.28026839,657.01,655.93,1.25042652]
[1746913266827,0.28026839,657.0,655.93,1.25042652]
[1746913267531,0.54547085,656.99,655.93,1.25042652]
[1746913267832,0.28026839,656.98,655.93,1.25042652]
[1746913268126,0.28026839,656.97,655.93,1.25042652]
[1746913268531,0.28026839,656.96,655.93,1.25042652]
[1746913268932,0.28026839,656.95,655.93,1.25042652]
[1746913269934,0.28026839,656.94,655.93,1.25042652]
[1746913270235,0.28026839,656.93,655.93,1.25042652]
[1746913270635,0.28026839,656.92,655.93,1.25042652]
[1746913271038,0.28026839,656.91,655.93,1.25042652]
[1746913271336,0.28026839,656.9,655.93,1.25042652]
[1746913271630,0.28026839,656.89,655.93,1.25042652]
[1746913272134,0.28026839,656.88,655.93,1.25042652]
[1746913272536,0.28026839,656.87,655.93,1.25042652]
[1746913272831,0.28026839,656.86,655.93,1.25042652]
[1746913273633,0.54546479,656.85,655.93,1.25042652]
[1746913273837,0.28026839,656.84,655.93,1.25042652]
[1746913274035,0.28026839,656.83,655.93,1.25042652]
[1746913274337,0.28026839,656.84,655.93,1.25042652]
[1746913274533,0.28026839,656.83,655.93,1.25042652]
[1746913274834,0.28026839,656.84,655.93,1.25042652]
[1746913275139,0.28026839,656.83,655.93,1.25042652]
[1746913275339,0.28026839,656.82,655.93,1.25042652]
[1746913275634,0.28026839,656.81,655.93,1.25042652]
[1746913275938,0.28026839,656.8,655.93,1.25042652]
[1746913276234,0.28026839,656.79,655.93,1.25042652]
[1746913276439,0.56841595,657.19,655.93,1.25042652]
[1746913276440,0.28026839,656.78,655.93,1.25042652]
[1746913276838,0.26521863,656.79,655.93,1.25042652]
[1746913277039,0.28026839,656.77,655.93,1.25042652]
[1746913277237,0.28026839,656.78,655.93,1.25042652]
[1746913278837,0.28026839,656.77,655.93,1.25042652]
[1746913279139,0.28026839,656.76,655.93,1.25042652]
[1746913279539,1.98324059,657.15,655.93,1.25042652]
[1746913279735,0.54548435,656.75,655.93,1.25042652]
[1746913279934,0.28025965,656.74,655.93,1.25042652]
[1746913280134,0.28025965,657.13,655.93,1.25042652]
[1746913280334,0.28025965,657.12,655.93,1.25042652]
[1746913280639,0.28025965,657.11,655.93,1.25042652]
[1746913280843,1.98324059,657.07,655.93,1.25042652]
[1746913281140,0.8486581,657.06,655.93,1.25042652]
[1746913281343,0.28025965,657.05,655.93,1.25042652]
[1746913281540,0.28025965,657.04,655.93,1.25042652]
[1746913281841,0.28025965,657.03,655.93,1.25042652]
[1746913282042,0.28025965,657.02,655.93,1.25042652]
[1746913282343,0.28025965,657.01,655.93,1.25042652]
[1746913282540,0.54545302,657.01,655.93,1.25042652]
[1746913282737,0.28025965,657.0,655.93,1.25042652]
[1746913283042,0.28025965,656.99,655.93,1.25042652]
[1746913284238,0.28025965,656.98,655.93,1.25042652]
[1746913284642,0.28025965,656.97,655.93,1.25042652]
[1746913284943,0.28025965,656.96,655.93,1.25042652]
[1746913285241,0.28025965,656.95,655.93,1.25042652]
[1746913285443,0.28025965,656.94,655.93,1.25042652]
[1746913285642,0.54545403,656.94,655.93,1.25042652]
[1746913286139,0.28025965,656.93,655.93,1.25042652]
[1746913288543,0.26523177,656.92,655.93,1.25042652]
[1746913288945,0.28025965,656.91,655.93,1.25042652]
[1746913289244,0.26523177,656.92,655.93,1.25042652]
[1746913289446,0.28028841,656.91,655.93,1.25042652]
[1746913291247,1.98324059,657.12,655.93,1.25042652]
[1746913291548,0.26523379,656.9,655.93,1.25042652]
[1746913291946,0.84874579,657.11,655.93,1.25042652]
[1746913292147,0.28028886,656.89,655.93,1.25042652]
[1746913292447,0.28028886,657.38,655.93,1.25042652]
[1746913292646,0.2651863,656.88,655.93,1.25042652]
[1746913292843,0.28028886,657.38,655.93,1.25042652]
[1746913293142,0.26518731,656.87,655.93,1.25042652]
[1746913293346,0.28028886,657.37,655.93,1.25042652]
[1746913293648,0.26518832,656.86,655.93,1.25042652]
[1746913293846,0.28028886,657.36,655.93,1.25042652]
[1746913294047,0.28028886,656.85,655.93,1.25042652]
[1746913294342,0.26518933,656.85,655.93,1.25042652]
[1746913294544,0.84874579,657.37,655.93,1.25042652]
[1746913294847,0.28028886,656.84,655.93,1.25042652]
[1746913295246,0.28028886,656.83,655.93,1.25042652]
[1746913295446,0.28028886,656.82,655.93,1.25042652]
[1746913296050,0.28028886,656.81,655.93,1.25042652]
[1746913296951,0.28028886,656.8,655.93,1.25042652]
[1746913297348,0.28028886,656.79,655.93,1.25042652]
[1746913297750,0.28028886,656.78,655.93,1.25042652]
[1746913298050,0.28028886,656.77,655.93,1.25042652]
[1746913298551,0.28028886,656.76,655.93,1.25042652]
[1746913298750,0.28028886,656.75,655.93,1.25042652]
[1746913299153,0.28028886,656.74,655.93,1.25042652]
[1746913299551,0.26518832,656.83,655.93,1.25042652]
[1746913299552,0.28028886,656.73,655.93,1.25042652]
[1746913299750,0.28028886,656.82,655.93,1.25042652]
[1746913299951,0.28028886,656.81,655.93,1.25042652]
[1746913300356,0.28028886,656.8,655.93,1.25042652]
[1746913300654,0.28028886,656.79,655.93,1.25042652]
[1746913300955,0.28028886,656.78,655.93,1.25042652]
[1746913301348,0.28028886,656.77,655.93,1.25042652]
[1746913301551,0.28028886,656.79,655.93,1.25042652]
[1746913301849,0.28028886,656.78,655.93,1.25042652]
[1746913302154,0.28028886,656.77,655.93,1.25042652]